[Event "Esbjerg Efterår 2024 - Esbjergmesterskabet"]
[Site "Esbjerg, Denmark"]
[Date "2024.10.19"]
[Round "4.1"]
[White "Medhus, Vitus Bondo"]
[Black "Løftgaard, Mikkel Vinh"]
[Result "1-0"]
[TimeControl "1.-3. 20 min + 5 sek, 4.-7. 90 min + 30 sek + 15 min efter 40 træk"]
[WhiteElo "2246"]
[BlackElo "2209"]

1. e4 {[%clk 01:30:47]} {[%emt 00:00:11]} c5 {[%clk 01:13:34]} {[%emt
00:17:27]} 2. Nc3 {[%clk 01:31:09]} {[%emt 00:00:08]} e6 {[%clk 01:13:45]}
{[%emt 00:00:20]} 3. Nge2 {[%clk 01:31:29]} {[%emt 00:00:09]} Nc6 {[%clk
01:14:04]} {[%emt 00:00:11]} 4. g3 {[%clk 01:31:24]} {[%emt 00:00:36]} d5
{[%clk 01:14:14]} {[%emt 00:00:20]} 5. exd5 {[%clk 01:30:17]} {[%emt 00:01:37]}
exd5 {[%emt 00:06:44]} 6. d4 {[%clk 01:19:45]} {[%emt 00:04:47]} Bg4 {[%emt
00:15:51]} 7. Bg2 {[%emt 00:05:54]} cxd4 {[%clk 01:07:06]} {[%emt 00:00:25]} 8.
Nxd5 {[%clk 01:06:01]} {[%emt 00:00:43]} Nf6 {[%emt 00:08:42]} 9. Bg5 {[%clk
00:57:27]} {[%emt 00:01:04]} Be7 {[%clk 01:04:15]} {[%emt 00:03:10]} 10. Nxe7
{[%clk 00:57:10]} {[%emt 00:00:47]} Qxe7 {[%emt 00:15:42]} 11. h3 {[%clk
00:38:56]} {[%emt 00:03:24]} Be6 {[%clk 00:59:23]} {[%emt 00:05:30]} 12. Bxc6+
{[%clk 00:37:09]} {[%emt 00:02:17]} bxc6 {[%clk 00:56:22]} {[%emt 00:03:31]} 13.
Qxd4 {[%clk 00:37:25]} {[%emt 00:00:14]} Rd8 {[%clk 00:53:10]} {[%emt
00:03:42]} 14. Bxf6 {[%clk 00:36:46]} {[%emt 00:01:09]} gxf6 {[%clk 00:53:26]}
{[%emt 00:00:13]} 15. Qh4 {[%clk 00:34:23]} {[%emt 00:02:52]} Bd5 {[%clk
00:49:00]} {[%emt 00:04:57]} 16. O-O {[%clk 00:34:42]} {[%emt 00:00:11]} Qe4
{[%clk 00:49:26]} {[%emt 00:00:05]} 17. Qxe4+ {[%clk 00:34:59]} {[%emt
00:00:13]} Bxe4 {[%clk 00:49:54]} {[%emt 00:00:02]} 18. Rfe1 {[%clk 00:34:25]}
{[%emt 00:01:04]} O-O {[%clk 00:48:25]} {[%emt 00:01:59]} 19. c3 {[%clk
00:33:19]} {[%emt 00:01:36]} Rd2 {[%clk 00:45:35]} {[%emt 00:03:21]} 20. Nd4
{[%clk 00:33:07]} {[%emt 00:00:41]} f5 {[%clk 00:45:46]} {[%emt 00:00:19]} 21.
Re2 {[%clk 00:31:55]} {[%emt 00:01:42]} Rxe2 {[%clk 00:45:41]} {[%emt
00:00:35]} 22. Nxe2 {[%clk 00:32:15]} {[%emt 00:00:10]} Rb8 {[%clk 00:45:23]}
{[%emt 00:00:48]} 23. b4 {[%clk 00:30:31]} {[%emt 00:02:14]} c5 {[%clk
00:44:35]} {[%emt 00:01:19]} 24. a3 {[%clk 00:28:52]} {[%emt 00:02:08]} Rd8
{[%clk 00:42:47]} {[%emt 00:02:18]} 25. Kf1 {[%clk 00:24:04]} {[%emt 00:05:18]}
Rd3 {[%clk 00:33:59]} {[%emt 00:09:19]} 26. Ke1 {[%clk 00:17:24]} {[%emt
00:07:09]} Bf3 {[%clk 00:31:40]} {[%emt 00:02:49]} 27. Rc1 {[%clk 00:17:31]}
{[%emt 00:00:23]} Rd6 {[%clk 00:30:40]} {[%emt 00:01:30]} 28. bxc5 {[%clk
00:15:58]} {[%emt 00:02:03]} Re6 {[%clk 00:30:54]} {[%emt 00:00:16]} 29. Rc2
{[%clk 00:16:14]} {[%emt 00:00:14]} Re5 {[%clk 00:31:10]} {[%emt 00:00:14]} 30.
c6 {[%clk 00:13:56]} {[%emt 00:02:48]} Bxc6 {[%clk 00:31:38]} {[%emt 00:00:02]}
31. Kd2 {[%clk 00:14:03]} {[%emt 00:00:23]} Ra5 {[%clk 00:30:00]} {[%emt
00:02:09]} 32. Ra2 {[%clk 00:13:02]} {[%emt 00:01:31]} Bd5 {[%clk 00:29:59]}
{[%emt 00:00:31]} 33. Ra1 {[%clk 00:13:25]} {[%emt 00:00:07]} Bc4 {[%clk
00:30:06]} {[%emt 00:00:23]} 34. Nf4 {[%clk 00:13:13]} {[%emt 00:00:41]} Kg7
{[%clk 00:24:44]} {[%emt 00:05:53]} 35. Ng2 {[%clk 00:06:11]} {[%emt 00:07:31]}
Rd5+ {[%clk 00:24:10]} {[%emt 00:01:04]} 36. Kc1 {[%clk 00:05:42]} {[%emt
00:00:59]} Rd3 {[%clk 00:22:43]} {[%emt 00:01:58]} 37. Ne3 {[%clk 00:06:09]}
{[%emt 00:00:02]} Rxc3+ {[%clk 00:22:54]} {[%emt 00:00:19]} 38. Kd2 {[%clk
00:06:38]} {[%emt 00:00:01]} Rd3+ {[%clk 00:23:13]} {[%emt 00:00:11]} 39. Kc2
{[%clk 00:07:04]} {[%emt 00:00:04]} Ba6 {[%clk 00:23:24]} {[%emt 00:00:20]} 40.
Nxf5+ {[%clk 00:07:31]} {[%emt 00:00:02]} Kf6 {[%clk 00:23:40]} {[%emt
00:00:14]} 41. Ne3 {[%clk 00:07:39]} {[%emt 00:00:21]} Ke5 {[%clk 00:23:34]}
{[%emt 00:00:35]} 42. Re1 {[%clk 00:03:59]} {[%emt 00:04:11]} Ke4 {[%clk
00:14:39]} {[%emt 00:09:25]} 43. Ng4+ {[%clk 00:02:31]} {[%emt 00:01:57]} Kd4
{[%clk 00:14:22]} {[%emt 00:00:47]} 44. Re7 {[%clk 00:02:24]} {[%emt 00:00:38]}
Rxa3 {[%clk 00:14:28]} {[%emt 00:00:25]} 45. Rd7+ {[%clk 00:12:59]} {[%emt
00:04:25]} Kc5 {[%clk 00:22:57]} {[%emt 00:06:30]} 46. Rxf7 {[%clk 00:12:18]}
{[%emt 00:00:42]} Bd3+ {[%clk 00:21:59]} {[%emt 00:00:57]} 47. Kb2 {[%clk
00:11:33]} {[%emt 00:00:45]} Ra2+ {[%clk 00:21:37]} {[%emt 00:00:22]} 48. Kc3
{[%clk 00:11:02]} {[%emt 00:00:31]} Bg6 {[%clk 00:20:56]} {[%emt 00:00:40]} 49.
Rf4 {[%clk 00:10:27]} {[%emt 00:00:35]} a5 {[%clk 00:19:55]} {[%emt 00:01:02]}
50. Ne5 {[%clk 00:09:35]} {[%emt 00:00:51]} Be8 {[%clk 00:16:04]} {[%emt
00:03:52]} 51. Rf5 {[%clk 00:08:09]} {[%emt 00:01:26]} a4 {[%clk 00:13:33]}
{[%emt 00:02:31]} 52. Nc4+ {[%clk 00:06:22]} {[%emt 00:01:47]} Kc6 {[%clk
00:13:30]} {[%emt 00:00:03]} 53. Kb4 {[%clk 00:05:42]} {[%emt 00:00:40]} Kd7
{[%clk 00:09:38]} {[%emt 00:03:52]} 54. g4 {[%clk 00:03:09]} {[%emt 00:02:33]}
Bg6 {[%clk 00:09:09]} {[%emt 00:00:30]} 55. Ne5+ {[%emt 00:09:07]} Ke6 {[%emt
00:00:01]} 56. Nxg6 {[%emt 00:00:16]} hxg6 {[%emt 00:00:03]} 57. Rf3 {[%emt
00:00:21]} Ra1 {[%emt 00:00:49]} 58. g5 {[%emt 00:01:46]} a3 {[%emt 00:04:43]}
59. Rf6+ {[%emt 00:01:05]} Ke5 {[%emt 00:00:01]} 60. Rxg6 {[%emt 00:00:21]} Kf5
{[%emt 00:00:31]} 61. Rg8 {[%emt 00:00:28]} a2 {[%emt 00:00:26]} 62. Kb3 {[%emt
00:00:05]} Rf1 {[%emt 00:00:30]} 63. Kxa2 {[%emt 00:00:13]} Rxf2+ {[%emt
00:00:16]} 64. Kb1 {[%emt 00:00:05]} Rh2 {[%emt 00:00:19]} 65. g6 {[%emt
00:00:32]} Rxh3 {[%emt 00:00:15]} 66. g7 {[%emt 00:00:11]} Kg6 {[%emt
00:00:04]} 67. Rh8 {[%emt 00:00:17]} 1-0

[Event "Esbjerg Efterår 2024 - Esbjergmesterskabet"]
[Site "Esbjerg, Denmark"]
[Date "2024.10.19"]
[Round "4.2"]
[White "Rossen, Claus"]
[Black "Jacobsen, Mikkel Manosri"]
[Result "1/2-1/2"]
[TimeControl "1.-3. 20 min + 5 sek, 4.-7. 90 min + 30 sek + 15 min efter 40 træk"]
[WhiteElo "2072"]
[BlackElo "2350"]

1. d4 {[%clk 01:30:57]} {[%emt 00:00:03]} d5 {[%clk 01:16:42]} {[%emt
00:14:18]} 2. Nf3 {[%clk 01:31:18]} {[%emt 00:00:09]} e6 {[%clk 01:16:24]}
{[%emt 00:00:49]} 3. c4 {[%clk 01:31:42]} {[%emt 00:00:07]} a6 {[%clk
01:16:51]} {[%emt 00:00:03]} 4. Nbd2 {[%clk 01:29:36]} {[%emt 00:02:35]} Nf6
{[%clk 01:16:44]} {[%emt 00:00:37]} 5. Qc2 {[%clk 01:30:00]} {[%emt 00:00:07]}
Nbd7 {[%clk 01:09:53]} {[%emt 00:07:20]} 6. e4 {[%clk 01:30:07]} {[%emt
00:00:23]} dxe4 {[%clk 01:06:55]} {[%emt 00:03:29]} 7. Nxe4 {[%clk 01:29:15]}
{[%emt 00:01:22]} Bb4+ {[%clk 01:05:34]} {[%emt 00:01:51]} 8. Nc3 {[%clk
01:25:20]} {[%emt 00:04:25]} b6 {[%clk 00:58:58]} {[%emt 00:07:07]} 9. a3
{[%clk 01:23:35]} {[%emt 00:02:15]} Be7 {[%clk 00:57:18]} {[%emt 00:02:10]} 10.
Be2 {[%clk 01:16:29]} {[%emt 00:07:36]} Bb7 {[%clk 00:57:41]} {[%emt 00:00:06]}
11. O-O {[%clk 01:16:53]} {[%emt 00:00:06]} c5 {[%clk 00:56:57]} {[%emt
00:01:15]} 12. dxc5 {[%clk 01:15:41]} {[%emt 00:01:42]} bxc5 {[%clk 00:57:21]}
{[%emt 00:00:05]} 13. Bf4 {[%clk 01:13:10]} {[%emt 00:03:00]} Nh5 {[%clk
00:54:44]} {[%emt 00:03:08]} 14. Be3 {[%clk 01:11:56]} {[%emt 00:01:43]} Qc7
{[%clk 00:55:03]} {[%emt 00:00:11]} 15. Rfd1 {[%clk 01:10:19]} {[%emt
00:02:08]} Ndf6 {[%clk 00:47:42]} {[%emt 00:07:51]} 16. Ne1 {[%clk 01:07:33]}
{[%emt 00:03:15]} Bd6 {[%clk 00:43:02]} {[%emt 00:05:11]} 17. g3 {[%clk
00:58:50]} {[%emt 00:09:13]} O-O {[%clk 00:40:01]} {[%emt 00:03:30]} 18. Bf3
{[%clk 00:59:11]} {[%emt 00:00:09]} Bxf3 {[%clk 00:38:23]} {[%emt 00:02:09]} 19.
Nxf3 {[%clk 00:59:32]} {[%emt 00:00:09]} Ng4 {[%clk 00:38:45]} {[%emt
00:00:08]} 20. Qe2 {[%clk 00:41:06]} {[%emt 00:18:56]} g6 {[%clk 00:34:27]}
{[%emt 00:04:47]} 21. Bg5 {[%clk 00:38:10]} {[%emt 00:03:27]} h6 {[%clk
00:27:09]} {[%emt 00:07:49]} 22. Ne4 {[%clk 00:35:44]} {[%emt 00:02:56]} Bxg3
{[%clk 00:25:13]} {[%emt 00:02:26]} 23. fxg3 {[%clk 00:32:51]} {[%emt
00:03:23]} hxg5 {[%clk 00:24:57]} {[%emt 00:00:46]} 24. Nfxg5 {[%clk 00:27:23]}
{[%emt 00:05:57]} Nhf6 {[%clk 00:17:06]} {[%emt 00:08:21]} 25. Rf1 {[%clk
00:25:30]} {[%emt 00:02:24]} Qe7 {[%clk 00:12:29]} {[%emt 00:05:08]} 26. h3
{[%clk 00:14:51]} {[%emt 00:11:08]} Nxe4 {[%clk 00:12:48]} {[%emt 00:00:11]} 27.
Nxe4 {[%clk 00:15:08]} {[%emt 00:00:13]} f5 {[%clk 00:12:13]} {[%emt 00:01:05]}
28. hxg4 {[%clk 00:15:09]} {[%emt 00:00:29]} fxe4 {[%clk 00:12:38]} {[%emt
00:00:06]} 29. Qxe4 {[%clk 00:15:36]} {[%emt 00:00:03]} Kh7 {[%clk 00:11:16]}
{[%emt 00:01:51]} 30. Rae1 {[%clk 00:10:26]} {[%emt 00:05:40]} Qd6 {[%clk
00:10:39]} {[%emt 00:01:07]} 31. Rf4 {[%clk 00:09:38]} {[%emt 00:01:18]} Rxf4
{[%clk 00:09:52]} {[%emt 00:01:18]} 32. gxf4 {[%clk 00:08:48]} {[%emt
00:01:20]} Rf8 {[%clk 00:10:10]} {[%emt 00:00:12]} 33. Rf1 {[%clk 00:08:41]}
{[%emt 00:00:37]} Rb8 {[%clk 00:10:05]} {[%emt 00:00:35]} 34. Rf2 {[%clk
00:08:09]} {[%emt 00:01:01]} Qd1+ {[%clk 00:10:28]} {[%emt 00:00:06]} 35. Kh2
{[%clk 00:07:44]} {[%emt 00:00:56]} Qxg4 {[%clk 00:10:45]} {[%emt 00:00:13]} 36.
Rd2 {[%clk 00:07:08]} {[%emt 00:01:06]} Rb3 {[%clk 00:08:40]} {[%emt 00:02:35]}
37. Kh1 {[%clk 00:05:06]} {[%emt 00:02:33]} Rh3+ {[%clk 00:00:59]} {[%emt
00:08:11]} 38. Rh2 {[%clk 00:05:28]} {[%emt 00:00:07]} Qd1+ {[%clk 00:01:24]}
{[%emt 00:00:05]} 39. Kg2 {[%clk 00:05:55]} {[%emt 00:00:03]} Qg4+ {[%clk
00:01:38]} {[%emt 00:00:17]} 40. Kh1 {[%clk 00:06:16]} {[%emt 00:00:08]} Qd1+
{[%clk 00:01:14]} {[%emt 00:00:55]} 41. Kg2 {[%clk 00:06:38]} {[%emt 00:00:08]}
Rxh2+ {[%clk 00:01:26]} {[%emt 00:00:17]} 42. Kxh2 {[%clk 00:07:02]} {[%emt
00:00:06]} Qd2+ {[%clk 00:01:52]} {[%emt 00:00:04]} 43. Kg3 {[%clk 00:05:31]}
{[%emt 00:02:02]} Qxb2 {[%clk 00:14:11]} {[%emt 00:03:10]} 44. Qxe6 {[%clk
00:19:44]} {[%emt 00:00:47]} Qxa3+ {[%clk 00:13:17]} {[%emt 00:00:55]} 45. Kg4
{[%clk 00:19:36]} {[%emt 00:00:07]} Qb2 {[%clk 00:10:31]} {[%emt 00:02:46]} 46.
Qe7+ {[%clk 00:16:15]} {[%emt 00:03:21]} Kh6 {[%clk 00:09:56]} {[%emt
00:00:35]} 47. Qh4+ {[%clk 00:15:37]} {[%emt 00:00:39]} Kg7 {[%clk 00:09:49]}
{[%emt 00:00:07]} 48. Qe7+ {[%clk 00:15:35]} {[%emt 00:00:02]} Kh6 {[%clk
00:09:36]} {[%emt 00:00:13]} 49. Qh4+ {[%clk 00:15:31]} {[%emt 00:00:05]} Kg7
{[%clk 00:09:31]} {[%emt 00:00:05]} 50. Qe7+ {[%clk 00:15:27]} {[%emt
00:00:03]} 1/2-1/2

[Event "Esbjerg Efterår 2024 - Esbjergmesterskabet"]
[Site "Esbjerg, Denmark"]
[Date "2024.10.19"]
[Round "4.3"]
[White "Hansen, Lars"]
[Black "Perets, Dmytro"]
[Result "0-1"]
[TimeControl "1.-3. 20 min + 5 sek, 4.-7. 90 min + 30 sek + 15 min efter 40 træk"]
[WhiteElo "2203"]
[BlackElo "2152"]

1. Nf3 {[%clk 01:21:35]} {[%emt 00:09:25]} c5 {[%clk 01:30:53]} {[%emt
00:00:08]} 2. e3 {[%clk 01:20:29]} {[%emt 00:01:36]} g6 {[%clk 01:31:12]}
{[%emt 00:00:11]} 3. d4 {[%clk 01:19:31]} {[%emt 00:01:28]} Bg7 {[%clk
01:31:41]} {[%emt 00:00:02]} 4. dxc5 {[%clk 01:17:38]} {[%emt 00:02:23]} Na6
{[%clk 01:32:05]} {[%emt 00:00:06]} 5. Be2 {[%clk 01:17:25]} {[%emt 00:00:41]}
Nf6 {[%clk 01:32:08]} {[%emt 00:00:28]} 6. O-O {[%clk 01:17:01]} {[%emt
00:00:55]} Nxc5 {[%clk 01:32:18]} {[%emt 00:00:20]} 7. c4 {[%clk 01:17:19]}
{[%emt 00:00:12]} Nfe4 {[%clk 01:27:21]} {[%emt 00:05:27]} 8. Nd4 {[%clk
01:15:24]} {[%emt 00:02:24]} O-O {[%clk 01:23:06]} {[%emt 00:04:45]} 9. b4
{[%clk 01:14:41]} {[%emt 00:01:14]} Ne6 {[%clk 01:23:00]} {[%emt 00:00:36]} 10.
Bb2 {[%clk 01:14:25]} {[%emt 00:00:46]} d5 {[%clk 01:14:52]} {[%emt 00:08:38]}
11. Nxe6 {[%clk 01:14:21]} {[%emt 00:00:33]} Bxe6 {[%clk 01:11:16]} {[%emt
00:04:06]} 12. Bxg7 {[%clk 01:14:31]} {[%emt 00:00:20]} Kxg7 {[%clk 01:11:40]}
{[%emt 00:00:07]} 13. Qd4+ {[%clk 01:14:43]} {[%emt 00:00:18]} Nf6 {[%clk
01:11:35]} {[%emt 00:00:34]} 14. c5 {[%clk 01:13:07]} {[%emt 00:02:06]} Qc7
{[%clk 01:11:10]} {[%emt 00:00:55]} 15. Rc1 {[%clk 01:08:16]} {[%emt 00:05:20]}
Rac8 {[%clk 01:10:53]} {[%emt 00:00:48]} 16. Nc3 {[%clk 00:57:51]} {[%emt
00:10:54]} b6 {[%clk 01:08:36]} {[%emt 00:02:48]} 17. Na4 {[%clk 00:45:47]}
{[%emt 00:12:32]} Bd7 {[%clk 01:08:58]} {[%emt 00:00:10]} 18. c6 {[%clk
00:38:15]} {[%emt 00:08:02]} e5 {[%clk 01:09:20]} {[%emt 00:00:08]} 19. Qb2
{[%clk 00:38:20]} {[%emt 00:00:24]} Bf5 {[%clk 01:09:46]} {[%emt 00:00:05]} 20.
Ba6 {[%clk 00:28:14]} {[%emt 00:10:36]} Rcd8 {[%clk 01:09:48]} {[%emt
00:00:28]} 21. h3 {[%clk 00:09:24]} {[%emt 00:19:20]} d4 {[%clk 01:05:42]}
{[%emt 00:04:36]} 22. exd4 {[%clk 00:08:34]} {[%emt 00:01:20]} exd4 {[%clk
01:03:43]} {[%emt 00:02:29]} 23. Bf1 {[%clk 00:05:30]} {[%emt 00:03:33]} Rfe8
{[%clk 00:54:36]} {[%emt 00:09:37]} 24. b5 {[%clk 00:05:34]} {[%emt 00:00:26]}
d3 {[%clk 00:49:33]} {[%emt 00:05:33]} 25. Nc3 {[%clk 00:04:18]} {[%emt
00:01:47]} Qf4 {[%clk 00:48:05]} {[%emt 00:01:58]} 26. Rd1 {[%clk 00:02:21]}
{[%emt 00:02:27]} Re5 {[%clk 00:42:46]} {[%emt 00:05:49]} 27. g3 {[%clk
00:00:45]} {[%emt 00:02:05]} Qd4 {[%clk 00:42:10]} {[%emt 00:01:06]} 28. Rd2
{[%clk 00:00:57]} {[%emt 00:00:18]} Rc5 {[%clk 00:41:25]} {[%emt 00:01:15]} 29.
Nd1 {[%clk 00:00:45]} {[%emt 00:00:43]} Qxb2 {[%clk 00:25:30]} {[%emt
00:16:25]} 30. Rxb2 {[%clk 00:01:13]} {[%emt 00:00:02]} Ne4 {[%clk 00:16:54]}
{[%emt 00:09:06]} 31. Bg2 {[%clk 00:00:38]} {[%emt 00:01:05]} Nd6 {[%clk
00:14:32]} {[%emt 00:02:52]} 32. Ne3 {[%clk 00:00:51]} {[%emt 00:00:17]} Nxb5
{[%clk 00:14:41]} {[%emt 00:00:21]} 33. Nxf5+ {[%clk 00:00:52]} {[%emt
00:00:29]} gxf5 {[%clk 00:14:42]} {[%emt 00:00:29]} 34. Rd2 {[%clk 00:00:38]}
{[%emt 00:00:44]} Nc3 {[%clk 00:09:18]} {[%emt 00:05:54]} 35. Bf1 {[%clk
00:00:39]} {[%emt 00:00:28]} Rxc6 {[%clk 00:08:58]} {[%emt 00:00:50]} 36. Rxd3
{[%clk 00:00:55]} {[%emt 00:00:13]} Rxd3 {[%clk 00:09:24]} {[%emt 00:00:05]} 37.
Bxd3 {[%clk 00:01:21]} {[%emt 00:00:05]} Kf6 {[%clk 00:09:40]} {[%emt
00:00:14]} 38. Kg2 {[%clk 00:01:21]} {[%emt 00:00:29]} Rd6 {[%clk 00:09:57]}
{[%emt 00:00:13]} 39. Bc4 {[%clk 00:01:20]} {[%emt 00:00:31]} Rd2 {[%clk
00:10:07]} {[%emt 00:00:21]} 40. Kf3 {[%clk 00:00:36]} {[%emt 00:01:14]} b5
{[%clk 00:04:53]} {[%emt 00:05:45]} 41. Bb3 {[%clk 00:04:16]} {[%emt 00:11:20]}
a5 {[%clk 00:16:58]} {[%emt 00:02:54]} 42. Ke3 {[%clk 00:02:10]} {[%emt
00:02:04]} Rb2 {[%clk 00:16:07]} {[%emt 00:00:51]} 43. Kd3 {[%emt 00:03:03]}
Ne4 {[%clk 00:14:40]} 44. f3 {[%clk 00:00:09]} {[%emt 00:00:27]} Nxg3 {[%emt
00:06:04]} 45. Rc1 {[%emt 00:00:29]} a4 {[%emt 00:00:46]} 46. Bd5 {[%emt
00:00:58]} Ne2 {[%emt 00:00:46]} 47. Rc6+ {[%emt 00:00:39]} Kg5 {[%emt
00:01:07]} 48. Bxf7 {[%emt 00:01:36]} Nf4+ {[%emt 00:00:01]} 49. Kd4 {[%emt
00:00:39]} b4 {[%emt 00:00:56]} 50. Ra6 {[%emt 00:00:25]} Ne2+ {[%emt
00:00:26]} 51. Ke3 {[%emt 00:00:32]} f4+ {[%emt 00:00:35]} 52. Ke4 {[%emt
00:00:27]} Nc3+ {[%emt 00:00:05]} 53. Kd3 {[%emt 00:00:38]} a3 {[%emt
00:01:11]} 54. Rb6 {[%emt 00:00:30]} Kh4 {[%emt 00:00:45]} 55. Be6 {[%emt
00:00:32]} Kg3 {[%emt 00:00:10]} 56. Rb7 {[%emt 00:00:33]} Nxa2 {[%emt
00:00:33]} 57. Bxa2 {[%emt 00:00:31]} Rxa2 {[%emt 00:00:04]} 58. Rxb4 {[%emt
00:00:03]} Rf2 {[%emt 00:00:14]} 59. Ke4 {[%emt 00:00:14]} Rxf3 {[%emt
00:00:13]} 60. Ra4 {[%emt 00:00:10]} Re3+ {[%emt 00:00:09]} 61. Kf5 {[%emt
00:00:11]} f3 {[%emt 00:00:12]} 62. Rg4+ {[%emt 00:00:31]} Kh2 {[%emt
00:00:06]} 63. Kf4 {[%emt 00:01:12]} f2 {[%clk 00:13:39]} {[%emt 00:00:28]} 0-1

[Event "Esbjerg Efterår 2024 - Esbjergmesterskabet"]
[Site "Esbjerg, Denmark"]
[Date "2024.10.19"]
[Round "4.4"]
[White "Saravana, Vedant Kumar"]
[Black "Hye, Allan"]
[Result "1/2-1/2"]
[TimeControl "1.-3. 20 min + 5 sek, 4.-7. 90 min + 30 sek + 15 min efter 40 træk"]
[WhiteElo "2115"]
[BlackElo "1988"]

1. e4 {[%clk 01:30:22]} {[%emt 00:00:37]} c6 {[%clk 01:30:52]} {[%emt
00:00:08]} 2. d4 {[%clk 01:30:47]} {[%emt 00:00:05]} d5 {[%clk 01:31:16]}
{[%emt 00:00:05]} 3. Nc3 {[%clk 01:31:13]} {[%emt 00:00:04]} dxe4 {[%clk
01:31:35]} {[%emt 00:00:11]} 4. Nxe4 {[%clk 01:31:26]} {[%emt 00:00:16]} Bf5
{[%clk 01:31:48]} {[%emt 00:00:17]} 5. Ng3 {[%clk 01:31:17]} {[%emt 00:00:40]}
Bg6 {[%clk 01:31:54]} {[%emt 00:00:23]} 6. Nf3 {[%clk 01:31:32]} {[%emt
00:00:17]} Nd7 {[%clk 01:31:49]} {[%emt 00:00:35]} 7. h4 {[%clk 01:31:54]}
{[%emt 00:00:08]} h6 {[%clk 01:32:03]} {[%emt 00:00:15]} 8. h5 {[%clk
01:31:28]} {[%emt 00:00:56]} Bh7 {[%clk 01:32:25]} {[%emt 00:00:08]} 9. Bd3
{[%clk 01:31:54]} {[%emt 00:00:04]} Bxd3 {[%clk 01:32:37]} {[%emt 00:00:17]} 10.
Qxd3 {[%clk 01:32:16]} {[%emt 00:00:09]} e6 {[%clk 01:31:47]} {[%emt 00:01:19]}
11. Bd2 {[%clk 01:31:47]} {[%emt 00:01:00]} Ngf6 {[%clk 01:31:26]} {[%emt
00:00:50]} 12. O-O-O {[%clk 01:31:42]} {[%emt 00:00:35]} Be7 {[%clk 01:30:29]}
{[%emt 00:01:28]} 13. Kb1 {[%clk 01:27:38]} {[%emt 00:04:34]} O-O {[%clk
01:28:55]} {[%emt 00:02:03]} 14. Ne4 {[%clk 01:27:06]} {[%emt 00:01:02]} Nxe4
{[%clk 01:29:13]} {[%emt 00:00:13]} 15. Qxe4 {[%clk 01:27:32]} {[%emt
00:00:05]} Nf6 {[%clk 01:29:33]} {[%emt 00:00:09]} 16. Qe2 {[%clk 01:27:57]}
{[%emt 00:00:05]} Qd5 {[%clk 01:29:08]} {[%emt 00:00:55]} 17. Ne5 {[%clk
01:26:40]} {[%emt 00:01:47]} Qe4 {[%clk 01:24:16]} {[%emt 00:05:22]} 18. Qxe4
{[%clk 01:19:52]} {[%emt 00:07:18]} Nxe4 {[%clk 01:24:36]} {[%emt 00:00:10]} 19.
Be1 {[%clk 01:20:20]} {[%emt 00:00:03]} Rfd8 {[%clk 01:22:12]} {[%emt
00:02:53]} 20. f3 {[%clk 01:17:26]} {[%emt 00:03:24]} Nf6 {[%clk 01:18:24]}
{[%emt 00:04:18]} 21. Bf2 {[%clk 01:16:56]} {[%emt 00:01:00]} a5 {[%clk
01:14:24]} {[%emt 00:04:30]} 22. a4 {[%clk 01:14:23]} {[%emt 00:03:02]} Nd5
{[%clk 01:10:55]} {[%emt 00:03:59]} 23. c4 {[%clk 00:59:26]} {[%emt 00:15:27]}
Nb4 {[%clk 01:02:10]} {[%emt 00:09:15]} 24. f4 {[%clk 00:59:28]} {[%emt
00:00:29]} b5 {[%clk 00:48:12]} {[%emt 00:14:28]} 25. axb5 {[%clk 00:51:03]}
{[%emt 00:08:55]} cxb5 {[%clk 00:48:12]} {[%emt 00:00:30]} 26. cxb5 {[%clk
00:46:22]} {[%emt 00:05:09]} Rd5 {[%clk 00:40:25]} {[%emt 00:08:19]} 27. b6
{[%clk 00:27:37]} {[%emt 00:19:15]} Rb5 {[%clk 00:29:25]} {[%emt 00:11:30]} 28.
Nd3 {[%clk 00:08:40]} {[%emt 00:19:24]} Nd5 {[%clk 00:22:55]} {[%emt 00:07:02]}
29. Rc1 {[%clk 00:08:26]} {[%emt 00:00:44]} Rxb6 {[%clk 00:21:21]} {[%emt
00:02:04]} 30. Kc2 {[%clk 00:06:36]} {[%emt 00:02:18]} Rab8 {[%clk 00:19:17]}
{[%emt 00:02:37]} 31. Rb1 {[%clk 00:05:05]} {[%emt 00:02:00]} Bf6 {[%clk
00:14:04]} {[%emt 00:05:44]} 32. Rhd1 {[%clk 00:03:08]} {[%emt 00:02:24]} Rc6+
{[%clk 00:11:11]} {[%emt 00:03:26]} 33. Kd2 {[%clk 00:02:52]} {[%emt 00:00:44]}
a4 {[%clk 00:10:06]} {[%emt 00:01:38]} 34. Rdc1 {[%clk 00:02:44]} {[%emt
00:00:38]} Rcb6 {[%clk 00:09:42]} {[%emt 00:00:54]} 35. Ra1 {[%clk 00:01:47]}
{[%emt 00:01:27]} Ra8 {[%clk 00:05:22]} {[%emt 00:04:50]} 36. Rc4 {[%clk
00:01:57]} {[%emt 00:00:19]} Rba6 {[%clk 00:02:54]} {[%emt 00:02:59]} 37. Nc5
{[%clk 00:01:20]} {[%emt 00:01:06]} Rb6 {[%clk 00:02:58]} {[%emt 00:00:26]} 38.
Nxa4 {[%clk 00:01:00]} {[%emt 00:00:50]} Rxb2+ {[%clk 00:02:26]} {[%emt
00:01:02]} 39. Nxb2 {[%clk 00:01:11]} {[%emt 00:00:19]} Rxa1 {[%clk 00:02:48]}
{[%emt 00:00:08]} 40. Nd3 {[%clk 00:01:22]} {[%emt 00:00:16]} Ra2+ {[%clk
00:02:45]} {[%emt 00:00:36]} 41. Rc2 {[%clk 00:00:58]} {[%emt 00:00:52]} Rxc2+
{[%emt 00:09:36]} 1/2-1/2